fUSD/lending_fUSD_20251210
["ID","MTS","AMOUNT","RATE_DAILY","PERIOD"]
[398139371,1765398663942,-500.0,0.00041655,60]
[398139372,1765398663952,-500.0,0.00041655,60]
[398139373,1765398663962,-500.0,0.00041655,60]
[398139374,1765398663973,-500.0,0.00041655,60]
[398139375,1765398663982,-306.40000001,0.00041655,60]
[398139376,1765398663992,-6741.1,0.00041655,30]
[398139377,1765398664002,-6741.1,0.00041655,30]
[398139378,1765398664012,-6741.1,0.00041655,30]
[398139379,1765398664021,-6741.1,0.00041655,30]
[398139380,1765398664031,-6741.1,0.00041655,30]
[398139381,1765398664040,-6741.1,0.00041655,30]
[398139382,1765398664050,-6741.1,0.00041655,30]
[398139383,1765398664060,-6741.1,0.00041655,30]
[398139384,1765398664070,-6741.1,0.00041655,30]
[398139385,1765398664080,-6741.1,0.00041655,30]
[398139386,1765398664092,-6741.1,0.00041655,30]
[398139387,1765398664103,-6741.1,0.00041655,30]
[398139388,1765398664113,-6741.1,0.00041655,30]
[398139389,1765398664123,-6741.1,0.00041655,30]
[398139390,1765398664135,-6741.16404339,0.00041655,30]
[398139391,1765398664150,-3943.88587793,0.00041656,2]
[398139392,1765398664160,-3943.88587793,0.00041656,4]
[398139393,1765398664170,-151.0,0.00041656,120]
[398139394,1765398664183,-500.0,0.00041658,60]
[398139395,1765398664193,-500.0,0.00041658,60]
[398139396,1765398664202,-357.26,0.00041658,60]
[398139397,1765398664212,-500.0,0.00041658,60]
[398139398,1765398664222,-500.0,0.00041658,60]
[398139399,1765398664233,-500.0,0.00041658,60]
[398139400,1765398664242,-500.0,0.00041658,60]
[398139401,1765398664252,-500.0,0.00041658,60]
[398139402,1765398664261,-533.09,0.00041658,60]
[398139403,1765398664270,-449.67384886,0.00041659,31]
[398139404,1765398664280,-19532.68279256,0.00041659,30]
[398139405,1765398664295,-6616.33313838,0.00041659,30]
[398139406,1765398664304,-15574.96866647,0.00041659,7]
[398139407,1765398664316,-867.94789954,0.00041659,7]
[398139408,1765398664327,-262.6824977,0.00041659,7]
[398139409,1765398664339,-347.30405,0.00041659,7]
[398139410,1765398664598,250.0,0.00017973,2]
[398139411,1765398664624,250.0,0.00017973,2]
[398139412,1765398664654,500.0,0.00017973,2]
[398139413,1765398664683,449.72286158,0.00017973,2]
[398139415,1765398743564,-500.0,0.00018521,2]
[398139416,1765398743588,-72.61588744,0.00018521,2]
[398139417,1765398746128,-226.94530719,0.00018521,2]
[398139419,1765398772364,-197.79004518,0.00018521,2]
[398139427,1765398940618,1999.9,0.0001,2]
[398139428,1765398941427,1999.9,0.0001,2]
[398139429,1765398942008,1999.9,0.0001,2]
[398139430,1765398942548,903.4,0.0001,2]
[398139433,1765399008965,-2.64876019,0.00018521,2]
[398139434,1765399008988,-500.0,0.00021722,2]
[398139435,1765399009010,-517.77688808,0.00021818,2]
[398139436,1765399009032,-300.0,0.00021917,2]
[398139437,1765399009055,-679.57435173,0.00021917,2]
[398139441,1765399087214,500.0,0.00017873,2]
[398139443,1765399145127,-1000.0,0.00018421,2]
[398139447,1765399162286,-1000.0,0.00018968,2]
[398139448,1765399169604,593.94149051,0.00017873,2]
[398139449,1765399170802,500.0,0.00017873,2]
[398139450,1765399171422,500.0,0.00017873,2]
[398139451,1765399171462,500.0,0.00017873,2]
[398139452,1765399210595,500.0,0.00017873,2]
[398139453,1765399210724,500.20481959,0.00017873,2]
[398139456,1765399266668,500.0,0.00017873,2]
[398139459,1765399273174,162.64645673,0.00017873,2]
[398139460,1765399273731,500.0,0.00017873,2]
[398139461,1765399273779,500.0,0.00017873,2]
[398139462,1765399279097,160.00240775,0.00017873,2]
[398139463,1765399280164,215.96581043,0.00017873,2]
[398139464,1765399283691,500.0,0.00017873,2]
[398139465,1765399285451,500.08411755,0.00017873,2]
[398139466,1765399288730,165.08580763,0.00017873,2]
[398139467,1765399289323,500.0,0.00017873,2]
[398139468,1765399290602,500.0,0.00017873,2]
[398139469,1765399291206,500.0,0.00017873,2]
[398139471,1765399327908,163.49957636,0.00017873,2]
[398139472,1765399328186,606.81718784,0.00017873,2]
[398139474,1765399386862,500.0,0.00017873,2]
[398139477,1765399411474,164.64,0.00013902,2]
[398139478,1765399411704,164.64,0.00016682,2]
[398139479,1765399443828,172.53266777,0.00017873,2]
[398139482,1765399503128,499.999999,0.00011138,2]
[398139483,1765399503597,300.99126161,0.00017873,2]
[398139484,1765399503646,574.05236391,0.00017873,2]
[398139488,1765399567010,500.0,0.00017973,2]
[398139490,1765399623881,500.0,0.00017873,2]
[398139491,1765399623928,162.88453966,0.00017873,2]
[398139492,1765399624031,500.0,0.00017873,2]
[398139493,1765399624127,173.52564751,0.00017973,2]
[398139496,1765399687320,500.0,0.00017873,2]
[398139499,1765399726202,217.07,0.00013699,2]
[398139500,1765399743696,501.98366811,0.00017873,2]
[398139501,1765399743773,500.0,0.00017873,2]
[398139504,1765399807466,500.0,0.00017873,2]
[398139515,1765399831805,-225.99338546,0.00018421,2]
[398139516,1765399831816,-31.88258423,0.00018968,2]
[398139517,1765399831864,-268.11741577,0.00018968,2]
[398139518,1765399831875,-195.0,0.00018968,2]
[398139519,1765399831885,-300.0,0.00018968,2]
[398139520,1765399831897,-250.0,0.00018968,2]
[398139521,1765399831906,-2500.0,0.00018968,2]
[398139522,1765399831917,-300.0,0.00018972,2]
[398139523,1765399831927,-195.0,0.00018972,2]
[398139524,1765399831937,-250.0,0.00018988,2]
[398139525,1765399831948,-1021.0,0.00019066,2]
[398139526,1765399831958,-2500.0,0.00019067,2]
[398139527,1765399831968,-164.64,0.00019463,2]
[398139528,1765399831978,-217.07,0.00020187,2]
[398139529,1765399831989,-300.0,0.00020863,2]
[398139530,1765399831999,-150.0,0.00020864,2]
[398139531,1765399832009,-1000.0,0.00020864,2]
[398139532,1765399832019,-2218.28678825,0.00020865,2]
[398139533,1765399832032,-281.71321175,0.00020865,2]
[398139534,1765399832042,-300.0,0.00020865,2]
[398139536,1765399832052,-104.34115897,0.00020865,2]
[398139539,1765399832064,-145.65884103,0.00020865,2]
[398139541,1765399832075,-300.0,0.00020865,2]
[398139543,1765399832085,-195.0,0.00020865,2]
[398139545,1765399832095,-195.0,0.00020865,2]
[398139547,1765399832106,-150.99,0.00020865,2]
[398139549,1765399832116,-1961.99,0.00020865,2]
[398139551,1765399832125,-999.99,0.00020865,2]
[398139553,1765399832135,-9999.99,0.00020865,2]
[398139556,1765399832150,-8224.04,0.00020865,2]
[398139558,1765399832160,-3800.21,0.00020865,2]
[398139560,1765399832169,-620.16,0.00020865,2]
[398139562,1765399832179,-299.99,0.00020865,7]
[398139564,1765399832189,-9999.99,0.00020865,2]
[398139566,1765399832198,-1933.28,0.00020865,2]
[398139568,1765399832208,-259.24701108,0.00021917,2]
[398139570,1765399832218,-7182.84,0.00021917,2]
[398139572,1765399832228,-9999.99,0.00021917,2]
[398139574,1765399832238,-150.99,0.00021917,2]
[398139576,1765399832248,-500.0,0.00021918,4]
[398139578,1765399832257,-500.0,0.00021918,4]
[398139580,1765399832267,-500.0,0.00021918,4]
[398139582,1765399832277,-500.0,0.00021918,4]
[398139584,1765399832286,-500.0,0.00021918,4]
[398139586,1765399832297,-500.0,0.00021918,4]
[398139588,1765399832307,-500.0,0.00021918,4]
[398139590,1765399832316,-500.0,0.00021918,4]
[398139592,1765399832326,-500.0,0.00021918,4]
[398139594,1765399832337,-475.33600565,0.00021918,4]
[398139596,1765399832348,-200.1,0.00021918,2]
[398139598,1765399832359,-500.0,0.00021969,2]
[398139600,1765399832369,-200.1,0.00022192,2]
[398139603,1765399832380,-164.64,0.00022243,2]
[398139605,1765399832391,-947.43,0.00022452,2]
[398139607,1765399832401,-200.1,0.00022466,2]
[398139609,1765399832411,-210.72830154,0.00022646,2]
[398139611,1765399832423,-3304.16149517,0.00022646,2]
[398139614,1765399832439,-2166.80020329,0.00022646,2]
[398139616,1765399832448,-420.0,0.00022697,2]
[398139618,1765399832458,-200.1,0.0002274,2]
[398139620,1765399832467,-200.14,0.00023014,2]
[398139622,1765399832477,-1852.42,0.00023179,2]
[398139624,1765399832487,-539.07141253,0.00023319,2]
[398139627,1765399832503,-4244.09858747,0.00023319,2]
[398139629,1765399832517,-772.54,0.00024658,30]
[398139632,1765399832526,-587.0,0.00024693,2]
[398139634,1765399832540,-738.0,0.00024702,2]
[398139636,1765399832550,-1198.0,0.00024752,2]
[398139638,1765399832560,-859.0,0.00024801,2]
[398139639,1765399832569,-164.64,0.00025023,2]
[398139640,1765399832580,-947.43,0.00025258,120]
[398139641,1765399832589,-151.0,0.00025944,2]
[398139642,1765399832599,-151.0,0.00025944,2]
[398139643,1765399832610,-151.0,0.00025944,2]
[398139644,1765399832620,-151.0,0.00025944,2]
[398139645,1765399832629,-151.0,0.00025944,2]
[398139646,1765399832639,-151.0,0.00025944,2]
[398139648,1765399832649,-151.0,0.00025944,2]
[398139650,1765399832659,-151.0,0.00025944,2]
[398139653,1765399832670,-151.0,0.00025944,2]
[398139655,1765399832680,-151.0,0.00025944,2]
[398139657,1765399832691,-151.0,0.00025944,2]
[398139659,1765399832701,-151.0,0.00025944,2]
[398139661,1765399832715,-151.0,0.00025944,2]
[398139663,1765399832726,-151.0,0.00025944,2]
[398139665,1765399832737,-151.0,0.00025944,2]
[398139667,1765399832748,-151.0,0.00025944,2]
[398139669,1765399832759,-151.0,0.00025944,2]
[398139671,1765399832771,-151.0,0.00025944,2]
[398139674,1765399832782,-151.0,0.00025944,2]
[398139676,1765399832795,-151.0,0.00025944,2]
[398139678,1765399832807,-53877.66389544,0.00025959,2]
[398139695,1765399837778,-157.18832528,0.00024701,2]
[398139696,1765399837787,-165.8237307,0.00024701,2]
[398139697,1765399837799,-334.1762693,0.00024701,2]
[398139698,1765399837809,-411.30039,0.00024701,2]
[398139699,1765399837818,-3084.29971617,0.00025959,2]
[398139700,1765399837834,-10551.81791768,0.00025959,2]
[398139701,1765399837846,-13000.0,0.00025959,2]
[398139702,1765399837859,-516.57804557,0.00025959,2]
[398139703,1765399837871,-937.76,0.00025959,2]
[398139704,1765399837888,-5717.90920731,0.00025959,2]
[398139705,1765399837899,-915.65231348,0.00025959,2]
[398139707,1765399838060,-1436.31215176,0.00025959,2]
[398139710,1765399838076,-3718.15492464,0.00025959,2]
[398139712,1765399838088,-14104.77877631,0.00025959,2]
[398139714,1765399838100,-6610.4662412,0.00026098,2]
[398139715,1765399838110,-166.66,0.00026198,30]
[398139717,1765399838121,-999.0,0.00026337,3]
[398139719,1765399838131,-217.07,0.00026676,2]
[398139720,1765399838141,-166.66,0.00026749,30]
[398139722,1765399838151,-823.0,0.00026865,2]
[398139724,1765399838163,-166.66,0.00027301,30]
[398139726,1765399838173,-244.02,0.00027397,2]
[398139727,1765399838183,-1301.52,0.00027397,2]
[398139728,1765399838193,-9999.99,0.00027397,2]
[398139729,1765399838203,-278.04,0.00027397,2]
[398139730,1765399838213,-1962.0,0.00027401,2]
[398139731,1765399838223,-776.0,0.00027455,2]
[398139732,1765399838233,-1544.0,0.0002751,2]
[398139733,1765399838243,-1511.0,0.00027565,2]
[398139734,1765399838253,-1126.0,0.00027619,2]
[398139735,1765399838263,-671.80497243,0.00027674,2]
[398139736,1765399838283,-1205.19502757,0.00027674,2]
[398139737,1765399838293,-911.0,0.00027729,2]
[398139738,1765399838303,-164.64,0.00027804,2]
[398139739,1765399838313,-6610.46624111,0.00027817,2]
[398139740,1765399838323,-166.66,0.00027852,30]
[398139742,1765399838333,-947.43,0.00028065,120]
[398139744,1765399838344,-166.66,0.00028404,30]
[398139746,1765399838355,-166.66,0.00028955,30]
[398139747,1765399838366,-1152.0,0.00029227,2]
[398139748,1765399838377,-772.54,0.00029492,30]
[398139749,1765399838387,-6610.46624111,0.00029536,2]
[398139750,1765399838397,-947.43,0.00030871,120]
[398139751,1765399838407,-1613.0,0.00031797,2]
[398139752,1765399838417,-217.07,0.00033165,2]
[398139753,1765399838427,-5800.0,0.00033256,2]
[398139755,1765399838437,-5800.0,0.00033264,2]
[398139756,1765399838446,-5800.0,0.00033273,2]
[398139757,1765399838456,-5800.0,0.00033281,2]
[398139758,1765399838466,-5800.0,0.0003329,2]
[398139759,1765399838475,-5800.0,0.00033298,2]
[398139760,1765399838486,-5800.0,0.00033307,2]
[398139761,1765399838496,-5800.0,0.00033315,2]
[398139762,1765399838506,-5800.0,0.00033324,2]
[398139763,1765399838516,-5800.0,0.00033332,2]
[398139764,1765399838525,-5800.0,0.00033341,2]
[398139765,1765399838540,-947.43,0.00033677,120]
[398139766,1765399838550,-500.0,0.00033799,60]
[398139767,1765399838561,-500.0,0.00033799,60]
[398139768,1765399838571,-500.0,0.00033799,60]
[398139769,1765399838582,-300.0,0.00033806,2]
[398139770,1765399838593,-188.98,0.000339,120]
[398139771,1765399838604,-914.04077809,0.00034111,7]
[398139772,1765399838617,-175.49,0.00034163,38]
[398139773,1765399838627,-2024.237,0.00034163,38]
[398139774,1765399838638,-160.0,0.00034247,14]
[398139775,1765399838648,-151.0,0.00034293,14]
[398139776,1765399838659,-125344.14902638,0.00034296,2]
[398139777,1765399838670,-772.54,0.00034327,30]
[398139778,1765399838680,-184.12373607,0.00034491,2]
[398139779,1765399838689,-1213.49030574,0.00034491,2]
[398139780,1765399838699,-628.0,0.00034593,2]
[398139781,1765399838709,-4783.17,0.000351,2]
[398139782,1765399838718,-344.8107,0.00035175,2]
[398139783,1765399838728,-1213.49030569,0.00035277,2]
[398139784,1765399838738,-184.12373605,0.00035502,2]
[398139785,1765399838748,-500.0,0.00035616,2]
[398139786,1765399838757,-235.0,0.00035616,24]
[398139787,1765399838767,-1213.49030569,0.00036063,2]
[398139788,1765399838777,-184.12373605,0.00036513,2]
[398139789,1765399838787,-64689.36111587,0.00036703,2]
[398139790,1765399838797,-1213.49030569,0.0003685,2]
[398139791,1765399838806,-150.0,0.00036888,7]
[398139792,1765399838817,-150.0,0.00036888,7]
[398139793,1765399838826,-150.13424327,0.00036888,7]
[398139794,1765399838836,-150.0,0.00036888,7]
[398139795,1765399838846,-150.1563075,0.00036888,7]
[398139796,1765399838856,-150.0,0.00036888,7]
[398139797,1765399838867,-150.0,0.00036888,7]
[398139798,1765399838876,-150.0,0.00036888,7]
[398139799,1765399838886,-150.0,0.00036888,7]
[398139800,1765399838895,-150.0,0.00036888,7]
[398139801,1765399838905,-150.0,0.00036888,7]
[398139802,1765399838914,-150.0,0.00036888,7]
[398139803,1765399838924,-150.1065279,0.00036888,7]
[398139804,1765399838934,-150.0,0.00036888,7]
[398139805,1765399838943,-150.0886242,0.00036888,7]
[398139806,1765399838953,-150.0,0.00036888,7]
[398139807,1765399838962,-412.86,0.00036962,2]
[398139808,1765399838972,-500.0,0.00036985,15]
[398139809,1765399838982,-274.62013307,0.00036985,15]
[398139810,1765399838991,-293.10261249,0.00036985,15]
[398139811,1765399839001,-20193.4,0.00036986,30]
[398139812,1765399839011,-150.0,0.00037002,7]
[398139813,1765399839020,-375.79404679,0.00037067,60]
[398139814,1765399839030,-500.0,0.00037067,60]
[398139815,1765399839040,-150.0,0.00037115,7]
[398139816,1765399839050,-150.0,0.00037115,7]
[398139817,1765399839060,-150.0,0.00037129,7]
[398139818,1765399839070,-150.0,0.00037161,7]
[398139819,1765399839079,-150.0,0.00037229,7]
[398139820,1765399839089,-150.0,0.00037343,7]
[398139821,1765399839099,-150.0,0.00037343,7]
[398139822,1765399839109,-150.0,0.0003737,7]
[398139823,1765399839119,-150.0,0.000374,7]
[398139824,1765399839131,-150.0,0.00037434,7]
[398139825,1765399839141,-150.0,0.00037457,7]
[398139826,1765399839151,-150.0,0.00037473,7]
[398139827,1765399839161,-1000.0,0.00037515,2]
[398139828,1765399839172,-184.12373605,0.00037524,2]
[398139829,1765399839182,-150.0,0.00037571,7]
[398139830,1765399839192,-150.0,0.00037571,7]
[398139831,1765399839203,-150.0,0.00037611,7]
[398139832,1765399839213,-1213.49030569,0.00037636,2]
[398139833,1765399839222,-150.0,0.00037685,7]
[398139834,1765399839232,-150.0,0.00037707,7]
[398139835,1765399839242,-150.0,0.00037798,7]
[398139836,1765399839252,-150.0,0.00037798,7]
[398139837,1765399839262,-150.0,0.00037852,7]
[398139838,1765399839272,-150.0,0.00037912,7]
[398139839,1765399839282,-150.0,0.00037912,7]
[398139840,1765399839292,-150.0,0.00037912,7]
[398139841,1765399839302,-150.0,0.00037912,7]
[398139842,1765399839311,-150.0,0.00037981,7]
[398139843,1765399839321,-150.0,0.00038026,7]
[398139844,1765399839330,-150.0,0.00038026,7]
[398139845,1765399839339,-150.0,0.00038059,7]
[398139846,1765399839349,-150.0,0.00038093,7]
[398139847,1765399839358,-150.0,0.0003814,7]
[398139848,1765399839368,-150.0,0.00038254,7]
[398139849,1765399839378,-150.0,0.00038254,7]
[398139850,1765399839387,-150.0,0.00038254,7]
[398139851,1765399839397,-150.0,0.00038254,7]
[398139852,1765399839406,-150.0,0.00038254,7]
[398139853,1765399839416,-150.0,0.00038334,7]
[398139854,1765399839425,-600.0,0.00038356,30]
[398139855,1765399839435,-150.0,0.00038368,7]
[398139856,1765399839445,-1213.49030569,0.00038422,2]
[398139857,1765399839454,-150.0,0.00038425,7]
[398139858,1765399839464,-150.0,0.00038482,7]
[398139859,1765399839474,-150.0,0.00038482,7]
[398139860,1765399839483,-150.0,0.00038527,7]
[398139861,1765399839493,-184.12373605,0.00038534,2]
[398139862,1765399839502,-150.0,0.00038575,7]
[398139863,1765399839511,-150.0,0.00038595,7]
[398139864,1765399839520,-150.0,0.00038644,7]
[398139865,1765399839532,-150.0,0.00038709,7]
[398139866,1765399839547,-150.0,0.00038709,7]
[398139867,1765399839556,-150.0,0.000388,7]
[398139868,1765399839566,-150.0,0.00038816,7]
[398139869,1765399839576,-150.0,0.00038823,7]
[398139870,1765399839588,-600.0,0.00038904,30]
[398139871,1765399839598,-150.0,0.00038937,7]
[398139872,1765399839607,-150.0,0.00038937,7]
[398139873,1765399839619,-150.0,0.00038937,7]
[398139874,1765399839630,-150.0,0.00038937,7]
[398139875,1765399839640,-150.0,0.00038937,7]
[398139876,1765399839650,-150.0,0.00039051,7]
[398139877,1765399839659,-150.0,0.00039058,7]
[398139878,1765399839669,-150.0,0.00039074,7]
[398139879,1765399839679,-772.54,0.00039162,120]
[398139880,1765399839690,-150.0,0.00039165,7]
[398139881,1765399839700,-150.0,0.00039165,7]
[398139882,1765399839710,-1213.49030569,0.00039208,2]
[398139883,1765399839720,-150.0,0.0003923,7]
[398139884,1765399839731,-150.0,0.00039279,7]
[398139885,1765399839741,-150.0,0.00039299,7]
[398139886,1765399839750,-150.0,0.00039347,7]
[398139887,1765399839759,-150.0,0.00039392,7]
[398139888,1765399839769,-150.0,0.00039392,7]
[398139889,1765399839778,-150.0,0.00039449,7]
[398139890,1765399839788,-600.0,0.00039452,30]
[398139891,1765399839798,-1120.3507157,0.000395,2]
[398139892,1765399839808,-150.0,0.00039506,7]
[398139893,1765399839818,-150.0,0.0003954,7]
[398139894,1765399839827,-184.12373605,0.00039545,2]
[398139895,1765399839837,-186.12,0.00039557,14]
[398139896,1765399839847,-325.87,0.00039558,14]
[398139897,1765399839856,-150.0,0.0003962,7]
[398139898,1765399839867,-150.0,0.0003962,7]
[398139899,1765399839877,-150.0,0.0003962,7]
[398139900,1765399839887,-150.0,0.0003962,7]
[398139901,1765399839896,-150.0,0.0003962,7]
[398139902,1765399839905,-217.07,0.00039654,2]
[398139903,1765399839915,-150.0,0.00039734,7]
[398139904,1765399839925,-150.0,0.00039781,7]
[398139905,1765399839935,-150.0,0.00039815,7]
[398139906,1765399839944,-150.0,0.00039848,7]
[398139907,1765399839954,-150.0,0.00039848,7]
[398139908,1765399839963,-168.0,0.00039889,7]
[398139909,1765399839973,-150.0,0.00039893,7]
[398139910,1765399839983,-4545.6804,0.000399,2]
[398139911,1765399839992,-150.0,0.00039962,7]
[398139912,1765399840001,-150.0,0.00039962,7]
[398139913,1765399840012,-150.0,0.00039962,7]
[398139914,1765399840022,-150.0,0.00039962,7]
[398139915,1765399840151,-168.0,0.00039982,2]
[398139916,1765399840162,-1213.49030569,0.00039995,15]
[398139917,1765399840172,-500.0,0.00039999,14]
[398139918,1765399840182,-600.0,0.0004,30]
[398139919,1765399840191,-150.0,0.00040022,7]
[398139920,1765399840201,-150.0,0.00040075,7]
[398139921,1765399840211,-150.0,0.00040075,7]
[398139922,1765399840220,-1725.6103,0.00040136,120]
[398139923,1765399840229,-210.82496467,0.00040136,18]
[398139924,1765399840239,-150.0,0.00040167,7]
[398139925,1765399840248,-150.0,0.00040189,7]
[398139926,1765399840257,-759.23206452,0.00040225,4]
[398139927,1765399840267,-12147.7130323,0.00040226,4]
[398139929,1765399840276,-8236.42604674,0.00040235,2]
[398139931,1765399840286,-500.0,0.00040235,60]
[398139933,1765399840296,-500.0,0.00040235,60]
[398139934,1765399840305,-500.0,0.00040235,60]
[398139936,1765399840314,-174.40418229,0.00040235,60]
[398139938,1765399840323,-444.88845389,0.00040235,60]
[398139940,1765399840333,-1000.0,0.00040238,2]
[398139941,1765399840342,-150.0,0.00040263,7]
[398139942,1765399840352,-150.0,0.00040303,7]
[398139943,1765399840361,-150.0,0.00040303,7]
[398139944,1765399840370,-500.0,0.00040336,60]
[398139945,1765399840380,-500.0,0.00040338,60]
[398139946,1765399840389,-500.0,0.00040338,60]
[398139947,1765399840398,-177.1573148,0.00040341,30]
[398139948,1765399840408,-19645.97,0.00040373,2]
[398139949,1765399840417,-150.0,0.000404,30]
[398139950,1765399840426,-150.0,0.00040401,7]
[398139951,1765399840435,-150.0,0.00040417,7]
[398139952,1765399840445,-150.0,0.0004044,7]
[398139953,1765399840454,-150.0,0.00040474,7]
[398139954,1765399840463,-150.0,0.00040504,7]
[398139955,1765399840473,-150.0,0.00040531,7]
[398139956,1765399840482,-150.0,0.00040531,7]
[398139957,1765399840491,-600.0,0.00040548,30]
[398139958,1765399840501,-184.12373605,0.00040556,28]
[398139959,1765399840510,-150.0,0.00040645,7]
[398139960,1765399840519,-150.0,0.00040713,7]
[398139961,1765399840530,-150.0,0.00040745,7]
[398139962,1765399840542,-150.0,0.00040759,7]
[398139963,1765399840552,-150.0,0.00040759,7]
[398139964,1765399840561,-1213.49030569,0.00040781,15]
[398139965,1765399840571,-196.46,0.00040796,14]
[398139966,1765399840580,-150.0,0.00040872,7]
[398139967,1765399840589,-184.77630856,0.0004098,2]
[398139968,1765399840598,-232.17034156,0.00040986,7]
[398139969,1765399840609,-288.49817923,0.00040986,7]
[398139970,1765399840619,-150.0,0.00040986,7]
[398139971,1765399840628,-181.70194615,0.00040986,7]
[398139972,1765399840638,-150.0,0.00040986,7]
[398139973,1765399840647,-150.0,0.00040986,7]
[398139974,1765399840656,-165.40022359,0.00040986,7]
[398139975,1765399840666,-150.0,0.00040986,7]
[398139976,1765399840675,-150.00000001,0.00040986,7]
[398139977,1765399840685,-150.0,0.00040986,7]
[398139978,1765399840695,-150.0,0.00040986,7]
[398139979,1765399840704,-150.0,0.00040986,7]
[398139980,1765399840714,-8075.86966687,0.00040995,16]
[398139981,1765399840724,-155555.0,0.00040995,120]
[398139982,1765399840733,-555.9668359,0.00040996,2]
[398139983,1765399840742,-184.77630856,0.00041075,2]
[398139984,1765399840751,-553.03738035,0.00041085,7]
[398139985,1765399840761,-151.0,0.00041092,14]
[398139986,1765399840770,-500.0,0.00041095,60]
[398139987,1765399840780,-500.0,0.00041095,60]
[398139988,1765399840789,-501.28921846,0.00041095,60]
[398139989,1765399840798,-500.0,0.00041095,60]
[398139990,1765399840807,-500.0,0.00041095,60]
[398139991,1765399840817,-500.0,0.00041095,60]
[398139992,1765399840827,-500.0,0.00041095,60]
[398139993,1765399840836,-500.0,0.00041095,60]
[398139994,1765399840846,-500.0,0.00041095,60]
[398139995,1765399840856,-500.0,0.00041095,60]
[398139996,1765399840872,-500.0,0.00041095,60]
[398139997,1765399840881,-524.27166121,0.00041095,60]
[398139998,1765399840890,-500.0,0.00041095,60]
[398139999,1765399840900,-500.0,0.00041095,60]
[398140000,1765399840909,-500.0,0.00041095,60]
[398140001,1765399840918,-500.0,0.00041095,60]
[398140002,1765399840928,-501.32023941,0.00041095,60]
[398140003,1765399840937,-500.0,0.00041095,60]
[398140004,1765399840946,-500.0,0.00041095,60]
[398140005,1765399840956,-500.0,0.00041095,60]
[398140006,1765399840966,-500.0,0.00041095,60]
[398140007,1765399840975,-500.0,0.00041095,60]
[398140008,1765399840985,-500.0,0.00041095,60]
[398140009,1765399840995,-500.73374272,0.00041095,60]
[398140010,1765399841004,-501.56545785,0.00041095,60]
[398140011,1765399841014,-500.0,0.00041095,60]
[398140012,1765399841023,-500.0,0.00041095,60]
[398140013,1765399841032,-500.0,0.00041095,60]
[398140014,1765399841042,-500.0,0.00041095,60]
[398140015,1765399841052,-500.0,0.00041095,60]
[398140016,1765399841062,-500.0,0.00041095,60]
[398140017,1765399841071,-500.0,0.00041095,60]
[398140018,1765399841081,-500.0,0.00041095,60]
[398140019,1765399841091,-500.0,0.00041095,60]
[398140020,1765399841101,-500.0,0.00041095,60]
[398140021,1765399841112,-500.0,0.00041095,60]
[398140022,1765399841122,-500.0,0.00041095,60]
[398140023,1765399841132,-500.0,0.00041095,60]
[398140024,1765399841141,-500.0,0.00041095,60]
[398140025,1765399841151,-500.0,0.00041095,60]
[398140026,1765399841161,-500.0,0.00041095,60]